[Event "Titled Tuesday Blitz June 13 Early 2023"]
[White "Deng, Henry"]
[Black "Ladan, Nicholas"]
[WhiteFideId "30965454"]
[BlackFideId "30918855"]
[WhiteElo "2564"]
[BlackElo "2167"]
[Result "1/2-1/2"]
[Round "11"]
[TimeControl "180+2"]
[Date "2023.06.13"]
[WhiteClock "0:01:15"]
[BlackClock "0:00:07"]
[Board "81"]

1. e4 {[%clk 0:02:52]}  e5 {[%clk 0:02:59]} 2. Nf3 {[%clk 0:02:51]}  Nc6 {[%clk 0:02:59]} 3. d4 {[%clk 0:02:52]}  exd4 {[%clk 0:02:59]} 4. Bc4 {[%clk 0:02:53]}  Nf6 {[%clk 0:02:58]} 5. e5 {[%clk 0:02:52]}  d5 {[%clk 0:02:59]} 6. Bb5 {[%clk 0:02:52]}  Ne4 {[%clk 0:02:57]} 7. Nxd4 {[%clk 0:02:53]}  Bc5 {[%clk 0:02:57]} 8. O-O {[%clk 0:02:52]}  O-O {[%clk 0:02:46]} 9. Bxc6 {[%clk 0:02:45]}  bxc6 {[%clk 0:02:33]} 10. f3 {[%clk 0:02:44]}  Ng5 {[%clk 0:02:25]} 11. f4 {[%clk 0:02:38]}  Ne4 {[%clk 0:02:21]} 12. Be3 {[%clk 0:02:38]}  Bd7 {[%clk 0:02:20]} 13. Nd2 {[%clk 0:02:35]}  Rb8 {[%clk 0:02:17]} 14. Rb1 {[%clk 0:02:33]}  Nxd2 {[%clk 0:02:10]} 15. Qxd2 {[%clk 0:02:27]}  Bb6 {[%clk 0:02:07]} 16. c3 {[%clk 0:02:22]}  c5 {[%clk 0:02:05]} 17. Nf3 {[%clk 0:02:23]}  Bf5 {[%clk 0:01:56]} 18. Rbd1 {[%clk 0:02:22]}  c6 {[%clk 0:01:56]} 19. h3 {[%clk 0:02:21]}  h5 {[%clk 0:01:51]} 20. Qf2 {[%clk 0:02:16]}  c4 {[%clk 0:01:42]} 21. Rd2 {[%clk 0:02:15]}  Be4 {[%clk 0:01:38]} 22. Ng5 {[%clk 0:02:14]}  Bd3 {[%clk 0:01:35]} 23. Re1 {[%clk 0:02:10]}  c5 {[%clk 0:01:30]} 24. Bxc5 {[%clk 0:02:01]}  Bxc5 {[%clk 0:01:22]} 25. Qxc5 {[%clk 0:02:01]}  Qb6 {[%clk 0:01:22]} 26. Qxb6 {[%clk 0:01:38]}  Rxb6 {[%clk 0:01:21]} 27. b4 {[%clk 0:01:34]}  a5 {[%clk 0:00:57]} 28. a3 {[%clk 0:01:31]}  axb4 {[%clk 0:00:55]} 29. axb4 {[%clk 0:01:32]}  Ra8 {[%clk 0:00:54]} 30. Nf3 {[%clk 0:01:30]}  Ra3 {[%clk 0:00:53]} 31. Rc1 {[%clk 0:01:31]}  f6 {[%clk 0:00:47]} 32. Nd4 {[%clk 0:01:28]}  Rba6 {[%clk 0:00:34]} 33. Kf2 {[%clk 0:01:27]}  Kf7 {[%clk 0:00:29]} 34. Ke3 {[%clk 0:01:26]}  g5 {[%clk 0:00:24]} 35. exf6 {[%clk 0:01:24]}  gxf4+ {[%clk 0:00:23]} 36. Kxf4 {[%clk 0:01:25]}  Rxf6+ {[%clk 0:00:19]} 37. Ke5 {[%clk 0:01:25]}  Ra8 {[%clk 0:00:15]} 38. Kxd5 {[%clk 0:01:24]}  Rd8+ {[%clk 0:00:12]} 39. Kc5 {[%clk 0:01:23]}  Rc8+ {[%clk 0:00:12]} 40. Kd5 {[%clk 0:01:16]}  Rd8+ {[%clk 0:00:12]} 41. Ke5 {[%clk 0:01:16]}  Re8+ {[%clk 0:00:08]} 42. Kd5 {[%clk 0:01:15]}  Rd8+ {[%clk 0:00:07]} 1/2-1/2


[Site "https://www.chess.com"]

[Event "Titled Tuesday Blitz June 13 Early 2023"]
[White "Rios Escobar, Adan"]
[Black "Shukhman, Anna"]
[WhiteFideId "3403645"]
[BlackFideId "54180058"]
[WhiteElo "2463"]
[BlackElo "2235"]
[Result "1/2-1/2"]
[Round "11"]
[TimeControl "180+2"]
[Date "2023.06.13"]
[WhiteClock "0:00:03"]
[BlackClock "0:00:03"]
[Board "83"]

1. d4 {[%clk 0:02:56]}  Nf6 {[%clk 0:03:00]} 2. g3 {[%clk 0:02:56]}  g6 {[%clk 0:03:01]} 3. Bg2 {[%clk 0:02:57]}  Bg7 {[%clk 0:03:01]} 4. e4 {[%clk 0:02:57]}  O-O {[%clk 0:03:01]} 5. Ne2 {[%clk 0:02:58]}  c5 {[%clk 0:03:00]} 6. dxc5 {[%clk 0:02:56]}  Qa5+ {[%clk 0:03:00]} 7. Nbc3 {[%clk 0:02:56]}  Qxc5 {[%clk 0:03:00]} 8. Be3 {[%clk 0:02:54]}  Qc7 {[%clk 0:02:57]} 9. h3 {[%clk 0:02:53]}  a6 {[%clk 0:02:57]} 10. O-O {[%clk 0:02:49]}  Nc6 {[%clk 0:02:57]} 11. f4 {[%clk 0:02:37]}  d6 {[%clk 0:02:56]} 12. Kh2 {[%clk 0:02:35]}  b5 {[%clk 0:02:38]} 13. a3 {[%clk 0:02:35]}  Bb7 {[%clk 0:02:37]} 14. Qd2 {[%clk 0:02:34]}  Rad8 {[%clk 0:02:23]} 15. Rad1 {[%clk 0:02:33]}  b4 {[%clk 0:01:42]} 16. axb4 {[%clk 0:02:27]}  Nxb4 {[%clk 0:01:43]} 17. Nd4 {[%clk 0:02:26]}  Nc6 {[%clk 0:01:41]} 18. Qf2 {[%clk 0:02:25]}  Nxd4 {[%clk 0:01:39]} 19. Bxd4 {[%clk 0:02:24]}  Qc4 {[%clk 0:01:36]} 20. e5 {[%clk 0:01:56]}  dxe5 {[%clk 0:01:35]} 21. fxe5 {[%clk 0:01:55]}  Bxg2 {[%clk 0:01:29]} 22. exf6 {[%clk 0:01:54]}  Bxf6 {[%clk 0:01:23]} 23. Kxg2 {[%clk 0:01:50]}  Bxd4 {[%clk 0:01:22]} 24. Qf4 {[%clk 0:01:40]}  Qc6+ {[%clk 0:01:19]} 25. Kh2 {[%clk 0:01:23]}  e5 {[%clk 0:01:15]} 26. Qf3 {[%clk 0:01:14]}  Qxf3 {[%clk 0:01:13]} 27. Rxf3 {[%clk 0:01:13]}  f5 {[%clk 0:01:06]} 28. Rfd3 {[%clk 0:01:02]}  Rb8 {[%clk 0:01:02]} 29. Na4 {[%clk 0:00:56]}  Bxb2 {[%clk 0:00:42]} 30. Nxb2 {[%clk 0:00:52]}  Rxb2 {[%clk 0:00:42]} 31. Rc3 {[%clk 0:00:53]}  Rf7 {[%clk 0:00:36]} 32. Rd6 {[%clk 0:00:50]}  f4 {[%clk 0:00:31]} 33. gxf4 {[%clk 0:00:41]}  exf4 {[%clk 0:00:32]} 34. Rxa6 {[%clk 0:00:38]}  f3 {[%clk 0:00:32]} 35. Ra1 {[%clk 0:00:36]}  Rb5 {[%clk 0:00:26]} 36. Rf1 {[%clk 0:00:35]}  f2 {[%clk 0:00:25]} 37. Kg2 {[%clk 0:00:31]}  Rg5+ {[%clk 0:00:24]} 38. Rg3 {[%clk 0:00:30]}  Rc5 {[%clk 0:00:20]} 39. c3 {[%clk 0:00:25]}  Rfc7 {[%clk 0:00:16]} 40. Rc1 {[%clk 0:00:22]}  Rf5 {[%clk 0:00:15]} 41. Rf1 {[%clk 0:00:18]}  Rcf7 {[%clk 0:00:15]} 42. Rd3 {[%clk 0:00:17]}  Kg7 {[%clk 0:00:14]} 43. Rd2 {[%clk 0:00:17]}  Rf3 {[%clk 0:00:13]} 44. Rc2 {[%clk 0:00:16]}  g5 {[%clk 0:00:10]} 45. Rfxf2 {[%clk 0:00:15]}  Rxf2+ {[%clk 0:00:07]} 46. Rxf2 {[%clk 0:00:16]}  Rc7 {[%clk 0:00:08]} 47. Rc2 {[%clk 0:00:15]}  Rc4 {[%clk 0:00:08]} 48. Kf3 {[%clk 0:00:14]}  Kg6 {[%clk 0:00:08]} 49. Ke3 {[%clk 0:00:15]}  Rh4 {[%clk 0:00:08]} 50. c4 {[%clk 0:00:10]}  Rxh3+ {[%clk 0:00:08]} 51. Kd4 {[%clk 0:00:10]}  Rh1 {[%clk 0:00:06]} 52. c5 {[%clk 0:00:05]}  Rd1+ {[%clk 0:00:06]} 53. Ke5 {[%clk 0:00:05]}  h5 {[%clk 0:00:05]} 54. c6 {[%clk 0:00:04]}  Rd8 {[%clk 0:00:04]} 55. Ke4 {[%clk 0:00:02]}  h4 {[%clk 0:00:04]} 56. c7 {[%clk 0:00:02]}  Rc8 {[%clk 0:00:05]} 57. Kf3 {[%clk 0:00:02]}  Kh5 {[%clk 0:00:05]} 58. Rc5 {[%clk 0:00:02]}  Rf8+ {[%clk 0:00:05]} 59. Kg2 {[%clk 0:00:02]}  Rc8 {[%clk 0:00:04]} 60. Kf3 {[%clk 0:00:02]}  Rf8+ {[%clk 0:00:03]} 61. Kg2 {[%clk 0:00:03]}  Rc8 {[%clk 0:00:03]} 62. Kf3 {[%clk 0:00:03]} 1/2-1/2


[Site "https://www.chess.com"]

[Event "Titled Tuesday Blitz June 13 Early 2023"]
[White "Matveeva, Olga"]
[Black "Pinheiro, Iung Alicio de O."]
[WhiteFideId "24107018"]
[BlackFideId "2104350"]
[WhiteElo "2009"]
[BlackElo "2283"]
[Result "0-1"]
[Round "11"]
[TimeControl "180+2"]
[Date "2023.06.13"]
[WhiteClock "0:00:03"]
[BlackClock "0:00:14"]
[Board "86"]

1. d4 {[%clk 0:03:00]}  Nf6 {[%clk 0:02:58]} 2. c4 {[%clk 0:03:00]}  e6 {[%clk 0:02:58]} 3. g3 {[%clk 0:03:01]}  d5 {[%clk 0:02:43]} 4. Nf3 {[%clk 0:03:00]}  Be7 {[%clk 0:02:38]} 5. Bg2 {[%clk 0:02:58]}  O-O {[%clk 0:02:38]} 6. O-O {[%clk 0:02:59]}  dxc4 {[%clk 0:02:38]} 7. Qc2 {[%clk 0:02:59]}  b5 {[%clk 0:02:35]} 8. a4 {[%clk 0:02:56]}  b4 {[%clk 0:02:24]} 9. Nbd2 {[%clk 0:02:52]}  Bb7 {[%clk 0:02:05]} 10. Nxc4 {[%clk 0:02:52]}  c5 {[%clk 0:02:05]} 11. Rd1 {[%clk 0:02:42]}  Nbd7 {[%clk 0:02:03]} 12. dxc5 {[%clk 0:02:37]}  Be4 {[%clk 0:01:49]} 13. Qd2 {[%clk 0:02:20]}  Nxc5 {[%clk 0:01:41]} 14. Qe1 {[%clk 0:02:00]}  Qc7 {[%clk 0:01:29]} 15. Bf4 {[%clk 0:01:59]}  Qc6 {[%clk 0:01:21]} 16. Nfe5 {[%clk 0:01:44]}  Qb7 {[%clk 0:01:17]} 17. Na5 {[%clk 0:01:25]}  Qb6 {[%clk 0:01:11]} 18. Nac4 {[%clk 0:01:21]}  Qb7 {[%clk 0:01:05]} 19. Na5 {[%clk 0:01:21]}  Qa6 {[%clk 0:01:02]} 20. Bxe4 {[%clk 0:01:15]}  Ncxe4 {[%clk 0:01:00]} 21. Nac6 {[%clk 0:01:10]}  Bc5 {[%clk 0:00:58]} 22. e3 {[%clk 0:01:00]}  g5 {[%clk 0:00:53]} 23. f3 {[%clk 0:00:26]}  gxf4 {[%clk 0:00:49]} 24. fxe4 {[%clk 0:00:26]}  Bxe3+ {[%clk 0:00:43]} 25. Kh1 {[%clk 0:00:24]}  Nxe4 {[%clk 0:00:35]} 26. gxf4 {[%clk 0:00:19]}  Nf2+ {[%clk 0:00:33]} 27. Kg2 {[%clk 0:00:18]}  Nxd1 {[%clk 0:00:33]} 28. Rxd1 {[%clk 0:00:15]}  Bxf4 {[%clk 0:00:30]} 29. Kh1 {[%clk 0:00:12]}  Bxe5 {[%clk 0:00:28]} 30. Nxe5 {[%clk 0:00:12]}  Qb7+ {[%clk 0:00:28]} 31. Kg1 {[%clk 0:00:11]}  Kh8 {[%clk 0:00:28]} 32. Rd3 {[%clk 0:00:09]}  Rg8+ {[%clk 0:00:28]} 33. Rg3 {[%clk 0:00:10]}  Rxg3+ {[%clk 0:00:28]} 34. hxg3 {[%clk 0:00:10]}  Rd8 {[%clk 0:00:20]} 35. Qf2 {[%clk 0:00:09]}  Kg7 {[%clk 0:00:19]} 36. Kh2 {[%clk 0:00:08]}  Rd1 {[%clk 0:00:18]} 37. Nf3 {[%clk 0:00:07]}  Qd5 {[%clk 0:00:16]} 38. Qe2 {[%clk 0:00:06]}  f6 {[%clk 0:00:14]} 39. Kg2 {[%clk 0:00:06]}  e5 {[%clk 0:00:14]} 40. Kf2 {[%clk 0:00:05]}  e4 {[%clk 0:00:14]} 41. Nh4 {[%clk 0:00:03]}  Rd2 {[%clk 0:00:14]} 0-1


[Site "https://www.chess.com"]

[Event "Titled Tuesday Blitz June 13 Early 2023"]
[White "Malyi, Viacheslav"]
[Black "Chandreyee, Hajra"]
[WhiteFideId "14123983"]
[BlackFideId "5056535"]
[WhiteElo "2291"]
[BlackElo "1725"]
[Result "1-0"]
[Round "11"]
[TimeControl "180+2"]
[Date "2023.06.13"]
[WhiteClock "0:00:16"]
[BlackClock "0:00:07"]
[Board "87"]

1. e4 {[%clk 0:02:58]}  e6 {[%clk 0:02:56]} 2. d4 {[%clk 0:02:51]}  d5 {[%clk 0:02:56]} 3. Nc3 {[%clk 0:02:51]}  Nf6 {[%clk 0:02:55]} 4. Bg5 {[%clk 0:02:49]}  dxe4 {[%clk 0:02:54]} 5. Nxe4 {[%clk 0:02:49]}  Be7 {[%clk 0:02:54]} 6. Bxf6 {[%clk 0:02:48]}  gxf6 {[%clk 0:02:54]} 7. Nf3 {[%clk 0:02:48]}  f5 {[%clk 0:02:50]} 8. Nc3 {[%clk 0:02:48]}  c5 {[%clk 0:02:50]} 9. d5 {[%clk 0:02:47]}  Bf6 {[%clk 0:02:48]} 10. Bb5+ {[%clk 0:02:46]}  Bd7 {[%clk 0:02:46]} 11. Qe2 {[%clk 0:02:25]}  Bxb5 {[%clk 0:02:25]} 12. Qxb5+ {[%clk 0:02:24]}  Qd7 {[%clk 0:02:24]} 13. Qxd7+ {[%clk 0:02:22]}  Nxd7 {[%clk 0:02:24]} 14. dxe6 {[%clk 0:02:14]}  Bxc3+ {[%clk 0:02:23]} 15. bxc3 {[%clk 0:02:14]}  fxe6 {[%clk 0:02:23]} 16. O-O-O {[%clk 0:02:14]}  Rg8 {[%clk 0:02:15]} 17. g3 {[%clk 0:02:13]}  Nb6 {[%clk 0:02:10]} 18. Rhe1 {[%clk 0:02:13]}  Ke7 {[%clk 0:02:08]} 19. Nh4 {[%clk 0:02:13]}  Rgf8 {[%clk 0:01:58]} 20. Nf3 {[%clk 0:02:07]}  h6 {[%clk 0:01:39]} 21. Ne5 {[%clk 0:02:07]}  Rfd8 {[%clk 0:01:37]} 22. h4 {[%clk 0:01:45]}  Rxd1+ {[%clk 0:01:21]} 23. Rxd1 {[%clk 0:01:46]}  Nd5 {[%clk 0:01:14]} 24. c4 {[%clk 0:01:42]}  Nf6 {[%clk 0:01:14]} 25. Ng6+ {[%clk 0:01:27]}  Kf7 {[%clk 0:01:13]} 26. Ne5+ {[%clk 0:01:26]}  Ke7 {[%clk 0:01:13]} 27. a4 {[%clk 0:01:17]}  h5 {[%clk 0:01:08]} 28. Ng6+ {[%clk 0:01:15]}  Kf7 {[%clk 0:01:08]} 29. Ne5+ {[%clk 0:01:16]}  Ke7 {[%clk 0:01:08]} 30. a5 {[%clk 0:01:17]}  Rd8 {[%clk 0:01:02]} 31. Ng6+ {[%clk 0:01:12]}  Ke8 {[%clk 0:01:01]} 32. Rxd8+ {[%clk 0:01:11]}  Kxd8 {[%clk 0:01:00]} 33. Nf4 {[%clk 0:01:06]}  Kd7 {[%clk 0:00:52]} 34. Kd2 {[%clk 0:01:06]}  e5 {[%clk 0:00:52]} 35. Nd5 {[%clk 0:01:05]}  Ne4+ {[%clk 0:00:31]} 36. Ke3 {[%clk 0:01:01]}  Nd6 {[%clk 0:00:28]} 37. Kd3 {[%clk 0:00:53]}  Ke6 {[%clk 0:00:20]} 38. f3 {[%clk 0:00:50]}  f4 {[%clk 0:00:20]} 39. gxf4 {[%clk 0:00:48]}  exf4 {[%clk 0:00:20]} 40. Nxf4+ {[%clk 0:00:48]}  Kf5 {[%clk 0:00:20]} 41. Nxh5 {[%clk 0:00:48]}  Nf7 {[%clk 0:00:19]} 42. Ng7+ {[%clk 0:00:43]}  Kf4 {[%clk 0:00:19]} 43. Ne6+ {[%clk 0:00:43]}  Kxf3 {[%clk 0:00:18]} 44. Nxc5 {[%clk 0:00:43]}  b6 {[%clk 0:00:19]} 45. axb6 {[%clk 0:00:40]}  axb6 {[%clk 0:00:19]} 46. Nd7 {[%clk 0:00:41]}  Kg4 {[%clk 0:00:18]} 47. Nxb6 {[%clk 0:00:35]}  Kxh4 {[%clk 0:00:19]} 48. Kd4 {[%clk 0:00:36]}  Kg5 {[%clk 0:00:19]} 49. Kd5 {[%clk 0:00:34]}  Kf6 {[%clk 0:00:19]} 50. Nc8 {[%clk 0:00:26]}  Nd8 {[%clk 0:00:15]} 51. c5 {[%clk 0:00:23]}  Kf7 {[%clk 0:00:15]} 52. Kd6 {[%clk 0:00:21]}  Ke8 {[%clk 0:00:15]} 53. c4 {[%clk 0:00:19]}  Nf7+ {[%clk 0:00:15]} 54. Kc6 {[%clk 0:00:17]}  Ne5+ {[%clk 0:00:15]} 55. Kb5 {[%clk 0:00:18]}  Kd7 {[%clk 0:00:15]} 56. Nb6+ {[%clk 0:00:16]}  Kc7 {[%clk 0:00:13]} 57. Nd5+ {[%clk 0:00:17]}  Kc8 {[%clk 0:00:13]} 58. c6 {[%clk 0:00:16]}  Nd3 {[%clk 0:00:11]} 59. Kb6 {[%clk 0:00:15]}  Ne5 {[%clk 0:00:10]} 60. Ne7+ {[%clk 0:00:14]}  Kd8 {[%clk 0:00:07]} 61. c7+ {[%clk 0:00:15]}  Kxe7 {[%clk 0:00:08]} 62. c8=Q {[%clk 0:00:16]}  Nxc4+ {[%clk 0:00:09]} 63. Qxc4 {[%clk 0:00:15]}  Kd6 {[%clk 0:00:07]} 64. Qf1 {[%clk 0:00:16]} 1-0


[Site "https://www.chess.com"]

[Event "Titled Tuesday Blitz June 13 Early 2023"]
[White "Kopczynski, Michal"]
[Black "Toncheva, Nadya"]
[WhiteFideId "1124200"]
[BlackFideId "2924056"]
[WhiteElo "2212"]
[BlackElo "2101"]
[Result "0-1"]
[Round "11"]
[TimeControl "180+2"]
[Date "2023.06.13"]
[WhiteClock "0:00:07"]
[BlackClock "0:00:18"]
[Board "89"]

1. e4 {[%clk 0:02:59]}  c5 {[%clk 0:03:00]} 2. d4 {[%clk 0:02:59]}  Nc6 {[%clk 0:03:00]} 3. d5 {[%clk 0:02:59]}  Nb8 {[%clk 0:02:57]} 4. f4 {[%clk 0:02:58]}  g6 {[%clk 0:02:57]} 5. Nf3 {[%clk 0:02:59]}  Bg7 {[%clk 0:02:57]} 6. Be2 {[%clk 0:02:58]}  d6 {[%clk 0:02:57]} 7. O-O {[%clk 0:02:58]}  e6 {[%clk 0:02:58]} 8. dxe6 {[%clk 0:02:56]}  Bxe6 {[%clk 0:02:58]} 9. f5 {[%clk 0:02:53]}  gxf5 {[%clk 0:02:51]} 10. exf5 {[%clk 0:02:54]}  Bxf5 {[%clk 0:02:49]} 11. Ng5 {[%clk 0:02:52]}  Bg6 {[%clk 0:02:44]} 12. Bc4 {[%clk 0:02:43]}  Nf6 {[%clk 0:02:38]} 13. Nc3 {[%clk 0:02:40]}  O-O {[%clk 0:02:28]} 14. Bf4 {[%clk 0:02:40]}  Ne8 {[%clk 0:02:08]} 15. a4 {[%clk 0:02:28]}  Nc6 {[%clk 0:02:04]} 16. Nd5 {[%clk 0:02:25]}  Nc7 {[%clk 0:01:37]} 17. Nxc7 {[%clk 0:02:20]}  Bd4+ {[%clk 0:01:37]} 18. Kh1 {[%clk 0:02:19]}  Qxc7 {[%clk 0:01:37]} 19. Qg4 {[%clk 0:01:47]}  Bg7 {[%clk 0:01:24]} 20. Rad1 {[%clk 0:01:37]}  Rad8 {[%clk 0:01:20]} 21. Qg3 {[%clk 0:01:22]}  Ne5 {[%clk 0:01:15]} 22. Bd5 {[%clk 0:01:22]}  Kh8 {[%clk 0:01:00]} 23. Qh4 {[%clk 0:01:08]}  Nc6 {[%clk 0:00:32]} 24. h3 {[%clk 0:00:27]}  Nd4 {[%clk 0:00:32]} 25. g4 {[%clk 0:00:21]}  Rde8 {[%clk 0:00:26]} 26. c3 {[%clk 0:00:19]}  Ne2 {[%clk 0:00:20]} 27. Bxd6 {[%clk 0:00:16]}  Qxd6 {[%clk 0:00:19]} 28. Bxf7 {[%clk 0:00:16]}  Qc6+ {[%clk 0:00:20]} 29. Bd5 {[%clk 0:00:15]}  Qc7 {[%clk 0:00:18]} 30. Rxf8+ {[%clk 0:00:11]}  Rxf8 {[%clk 0:00:19]} 31. Kg2 {[%clk 0:00:11]}  Nf4+ {[%clk 0:00:18]} 32. Kg1 {[%clk 0:00:09]}  Nxd5 {[%clk 0:00:18]} 33. Rxd5 {[%clk 0:00:10]}  Qf4 {[%clk 0:00:17]} 34. Rd1 {[%clk 0:00:08]}  Qe3+ {[%clk 0:00:17]} 35. Kg2 {[%clk 0:00:08]}  Be4+ {[%clk 0:00:17]} 36. Nxe4 {[%clk 0:00:07]}  Qxe4+ {[%clk 0:00:18]} 37. Kg1 {[%clk 0:00:08]}  Qe3+ {[%clk 0:00:18]} 38. Kg2 {[%clk 0:00:08]}  Qe2+ {[%clk 0:00:19]} 39. Kg3 {[%clk 0:00:07]}  Qxd1 {[%clk 0:00:18]} 0-1


[Site "https://www.chess.com"]

[Event "Titled Tuesday Blitz June 13 Early 2023"]
[White "Kubicka, Anna"]
[Black "Jaivardhan Raj"]
[WhiteFideId "1152254"]
[BlackFideId "25744437"]
[WhiteElo "2144"]
[BlackElo "1772"]
[Result "1-0"]
[Round "11"]
[TimeControl "180+2"]
[Date "2023.06.13"]
[WhiteClock "0:00:20"]
[BlackClock "0:00:00"]
[Board "95"]

1. e4 {[%clk 0:03:00]}  c5 {[%clk 0:02:57]} 2. Ne2 {[%clk 0:03:01]}  Nc6 {[%clk 0:02:55]} 3. g3 {[%clk 0:03:01]}  e6 {[%clk 0:02:55]} 4. Bg2 {[%clk 0:03:02]}  d5 {[%clk 0:02:54]} 5. exd5 {[%clk 0:03:02]}  exd5 {[%clk 0:02:55]} 6. d4 {[%clk 0:03:02]}  cxd4 {[%clk 0:02:53]} 7. Nxd4 {[%clk 0:03:03]}  Bc5 {[%clk 0:02:50]} 8. Nb3 {[%clk 0:02:59]}  Be6 {[%clk 0:02:33]} 9. Nxc5 {[%clk 0:02:43]}  Qa5+ {[%clk 0:02:32]} 10. c3 {[%clk 0:02:33]}  Qxc5 {[%clk 0:02:32]} 11. O-O {[%clk 0:02:34]}  Nge7 {[%clk 0:02:25]} 12. Be3 {[%clk 0:02:33]}  Qd6 {[%clk 0:02:24]} 13. Nd2 {[%clk 0:02:31]}  O-O {[%clk 0:02:22]} 14. Ne4 {[%clk 0:02:27]}  Qc7 {[%clk 0:02:02]} 15. Ng5 {[%clk 0:02:22]}  Bf5 {[%clk 0:01:52]} 16. Bf4 {[%clk 0:02:13]}  Qd7 {[%clk 0:01:46]} 17. Nf3 {[%clk 0:01:48]}  Ng6 {[%clk 0:01:39]} 18. Be3 {[%clk 0:01:47]}  Rad8 {[%clk 0:01:35]} 19. Nd4 {[%clk 0:01:46]}  Nxd4 {[%clk 0:01:27]} 20. Qxd4 {[%clk 0:01:47]}  b6 {[%clk 0:01:14]} 21. Rad1 {[%clk 0:01:46]}  Ne7 {[%clk 0:01:11]} 22. Bg5 {[%clk 0:01:41]}  f6 {[%clk 0:01:08]} 23. Be3 {[%clk 0:01:28]}  Bh3 {[%clk 0:00:56]} 24. Qf4 {[%clk 0:01:21]}  Bxg2 {[%clk 0:00:53]} 25. Kxg2 {[%clk 0:01:22]}  Ng6 {[%clk 0:00:52]} 26. Qd4 {[%clk 0:01:15]}  Ne5 {[%clk 0:00:51]} 27. Bf4 {[%clk 0:01:09]}  Nc6 {[%clk 0:00:46]} 28. Qa4 {[%clk 0:01:07]}  Qb7 {[%clk 0:00:43]} 29. Kg1 {[%clk 0:01:04]}  b5 {[%clk 0:00:40]} 30. Qb3 {[%clk 0:01:01]}  Ne7 {[%clk 0:00:35]} 31. Rfe1 {[%clk 0:00:57]}  Kh8 {[%clk 0:00:34]} 32. Re6 {[%clk 0:00:56]}  a5 {[%clk 0:00:32]} 33. a4 {[%clk 0:00:44]}  Ng6 {[%clk 0:00:20]} 34. Bd6 {[%clk 0:00:34]}  Rfe8 {[%clk 0:00:19]} 35. Rxe8+ {[%clk 0:00:34]}  Rxe8 {[%clk 0:00:19]} 36. Qxb5 {[%clk 0:00:32]}  Qxb5 {[%clk 0:00:17]} 37. axb5 {[%clk 0:00:33]}  Rd8 {[%clk 0:00:15]} 38. Rxd5 {[%clk 0:00:25]}  Ne7 {[%clk 0:00:15]} 39. Rd2 {[%clk 0:00:20]}  Nc8 {[%clk 0:00:14]} 40. Bf4 {[%clk 0:00:20]}  Rxd2 {[%clk 0:00:14]} 41. Bxd2 {[%clk 0:00:21]}  Kg8 {[%clk 0:00:13]} 42. c4 {[%clk 0:00:21]}  Kf7 {[%clk 0:00:10]} 43. Bxa5 {[%clk 0:00:20]}  Ke7 {[%clk 0:00:10]} 44. Bb4+ {[%clk 0:00:19]}  Kd7 {[%clk 0:00:10]} 45. Bc5 {[%clk 0:00:20]}  Kc7 {[%clk 0:00:10]} 46. Kg2 {[%clk 0:00:19]}  Nb6 {[%clk 0:00:11]} 47. Bxb6+ {[%clk 0:00:19]}  Kxb6 {[%clk 0:00:11]} 48. b4 {[%clk 0:00:20]}  f5 {[%clk 0:00:06]} 49. Kf3 {[%clk 0:00:20]}  g6 {[%clk 0:00:07]} 50. Kf4 {[%clk 0:00:20]}  h6 {[%clk 0:00:06]} 51. Ke5 {[%clk 0:00:20]}  h5 {[%clk 0:00:01]} 52. f4 {[%clk 0:00:20]}  h4 {[%clk 0:00:01]} 53. gxh4 {[%clk 0:00:20]}  g5 {[%clk 0:00:00]} 54. hxg5 {[%clk 0:00:20]} 1-0


[Site "https://www.chess.com"]

[Event "Titled Tuesday Blitz June 13 Early 2023"]
[White "Papayan, Oleg"]
[Black "Pakleza, Zbigniew"]
[WhiteFideId "4193911"]
[BlackFideId "1119290"]
[WhiteElo "2167"]
[BlackElo "2410"]
[Result "0-1"]
[Round "11"]
[TimeControl "180+2"]
[Date "2023.06.13"]
[WhiteClock "0:00:00"]
[BlackClock "0:01:43"]
[Board "97"]

1. e4 {[%clk 0:03:00]}  d6 {[%clk 0:03:00]} 2. d4 {[%clk 0:03:01]}  g6 {[%clk 0:03:00]} 3. Nc3 {[%clk 0:03:01]}  a6 {[%clk 0:03:00]} 4. a4 {[%clk 0:03:00]}  b6 {[%clk 0:03:01]} 5. Nf3 {[%clk 0:02:59]}  c6 {[%clk 0:03:02]} 6. h4 {[%clk 0:02:59]}  h6 {[%clk 0:03:01]} 7. h5 {[%clk 0:02:59]}  g5 {[%clk 0:03:02]} 8. Bd3 {[%clk 0:02:43]}  e6 {[%clk 0:02:58]} 9. Qe2 {[%clk 0:02:41]}  Bg7 {[%clk 0:02:57]} 10. Be3 {[%clk 0:02:40]}  Ne7 {[%clk 0:02:57]} 11. e5 {[%clk 0:02:18]}  d5 {[%clk 0:02:52]} 12. g4 {[%clk 0:02:05]}  Nd7 {[%clk 0:02:48]} 13. Nxg5 {[%clk 0:01:12]}  hxg5 {[%clk 0:02:40]} 14. Bxg5 {[%clk 0:01:13]}  c5 {[%clk 0:02:38]} 15. h6 {[%clk 0:00:53]}  cxd4 {[%clk 0:02:31]} 16. hxg7 {[%clk 0:00:52]}  Rxh1+ {[%clk 0:02:32]} 17. Kd2 {[%clk 0:00:53]}  dxc3+ {[%clk 0:02:33]} 18. bxc3 {[%clk 0:00:54]}  Rxa1 {[%clk 0:02:32]} 19. Bxe7 {[%clk 0:00:49]}  Kxe7 {[%clk 0:02:31]} 20. Qe3 {[%clk 0:00:48]}  Qg8 {[%clk 0:01:52]} 21. Qh6 {[%clk 0:00:00]}  Rh1 {[%clk 0:01:43]} 0-1


[Site "https://www.chess.com"]

[Event "Titled Tuesday Blitz June 13 Early 2023"]
[White "KorolDimitriy75"]
[Black "Kozak, Antoni"]
[BlackFideId "21832030"]
[WhiteElo "2434"]
[BlackElo "2470"]
[Result "0-1"]
[Round "11"]
[TimeControl "180+2"]
[Date "2023.06.13"]
[WhiteClock "0:00:06"]
[BlackClock "0:00:08"]
[Board "98"]

1. d4 {[%clk 0:03:00]}  b5 {[%clk 0:02:55]} 2. e4 {[%clk 0:03:00]}  a6 {[%clk 0:02:55]} 3. Bd3 {[%clk 0:02:59]}  Bb7 {[%clk 0:02:55]} 4. Qe2 {[%clk 0:02:59]}  g6 {[%clk 0:02:55]} 5. Nf3 {[%clk 0:02:59]}  Bg7 {[%clk 0:02:56]} 6. O-O {[%clk 0:02:58]}  d6 {[%clk 0:02:56]} 7. a4 {[%clk 0:02:58]}  b4 {[%clk 0:02:53]} 8. c3 {[%clk 0:02:57]}  e6 {[%clk 0:02:51]} 9. Bg5 {[%clk 0:02:54]}  Ne7 {[%clk 0:02:50]} 10. Nbd2 {[%clk 0:02:52]}  h6 {[%clk 0:02:49]} 11. Bh4 {[%clk 0:02:51]}  g5 {[%clk 0:02:43]} 12. Bg3 {[%clk 0:02:50]}  Nd7 {[%clk 0:02:44]} 13. Rad1 {[%clk 0:02:33]}  Ng6 {[%clk 0:02:37]} 14. e5 {[%clk 0:02:18]}  bxc3 {[%clk 0:01:44]} 15. bxc3 {[%clk 0:02:16]}  Nf4 {[%clk 0:01:36]} 16. Bxf4 {[%clk 0:02:08]}  gxf4 {[%clk 0:01:37]} 17. Rb1 {[%clk 0:01:41]}  Bc6 {[%clk 0:01:30]} 18. a5 {[%clk 0:01:15]}  dxe5 {[%clk 0:01:24]} 19. Nxe5 {[%clk 0:01:10]}  Bxe5 {[%clk 0:01:22]} 20. dxe5 {[%clk 0:01:10]}  Nc5 {[%clk 0:01:18]} 21. Bc4 {[%clk 0:00:57]}  Rg8 {[%clk 0:00:34]} 22. f3 {[%clk 0:00:47]}  Rg5 {[%clk 0:00:32]} 23. Rfd1 {[%clk 0:00:44]}  Qe7 {[%clk 0:00:30]} 24. Bxa6 {[%clk 0:00:34]}  Nxa6 {[%clk 0:00:22]} 25. Qc4 {[%clk 0:00:25]}  Qc5+ {[%clk 0:00:21]} 26. Qxc5 {[%clk 0:00:22]}  Nxc5 {[%clk 0:00:22]} 27. Nc4 {[%clk 0:00:21]}  Bxf3 {[%clk 0:00:20]} 28. Rd2 {[%clk 0:00:19]}  Bd5 {[%clk 0:00:20]} 29. Nb2 {[%clk 0:00:14]}  Ne4 {[%clk 0:00:19]} 30. Rc2 {[%clk 0:00:12]}  f3 {[%clk 0:00:19]} 31. c4 {[%clk 0:00:11]}  Bc6 {[%clk 0:00:15]} 32. Rf1 {[%clk 0:00:09]}  fxg2 {[%clk 0:00:14]} 33. Re1 {[%clk 0:00:08]}  Rxa5 {[%clk 0:00:14]} 34. Nd3 {[%clk 0:00:08]}  Rg8 {[%clk 0:00:09]} 35. Nb4 {[%clk 0:00:07]}  Bb7 {[%clk 0:00:08]} 36. Rb2 {[%clk 0:00:06]}  Ng5 {[%clk 0:00:08]} 37. Nc2 {[%clk 0:00:06]}  Nh3# {[%clk 0:00:08]} 0-1


[Site "https://www.chess.com"]